Workbook

Sheet Лист1
A1: УТВЕРЖДАЮ Заведующий МБДОУ «Детский сад №78 «Ёлочка» ____________Ваничкова А.Г.
A3: ПОНЕДЕЛЬНИК 12/01 | B3: Масса порции/ авырлыгы | D3: Энергетическая ценность (ккал) | F3: ДҮШӘМБЕ 12/01
A4: ЗАВТРАК | B4: САД | C4: ЯСЛИ | D4: САД | E4: ЯСЛИ | F4: ИРТӘНГЕ АШ
A5: Бутерброд с маслом | B5: 30/5 | C5: 20/5 | D5: 112.00 | E5: 85.71 | F5: Майлы ак күмәч
A6: Каша гречневая (вязкая) с сахаром | B6: 200 | C6: 150 | D6: 238.01 | E6: 178.51 | F6: Баллы карабодай боткасы
A7: Чай полусладкий | B7: 200 | C7: 150 | D7: 21.50 | E7: 16.12 | F7: Баллы чәй
A8: ИТОГО | D8: =SUM(D5:D7) -> 371.51 | E8: =SUM(E5:E7) -> 280.34
A9: 2 ЗАВТРАК | F9: 2 ИРТӘНГЕ АШ
A10: Сок фруктовый разливной | B10: 100 | C10: 100 | D10: 42.40 | E10: 42.40 | F10: сок
A11: ИТОГО | D11: =SUM(D10) -> 42.40 | E11: =SUM(E10) -> 42.40
A12: ОБЕД | F12: ТӨШКЕ АШ
A13: Салат "Капуста квашеная" (б/лука) | B13: 50 | C13: 40 | D13: 45.66 | E13: 36.53 | F13: Кәбесте салаты
A14: Суп картоф крупой с мяк птицы | B14: 200/15 | C14: 150/10 | D14: 137.90 | E14: 86.08 | F14: Пешерелгән кош ите белән бәрәңгеле аш
A15: Митболы из говядины в соусе томатном | B15: 60/50 | C15: 6050 | D15: 149.36 | E15: 149.36 | F15: Сыер итеннән митбол
A16: Каша перловая вязкая | B16: 130 | C16: 110 | D16: 125.69 | E16: 106.35 | F16: Перловка боткасы
A17: Компот "Плодово-ягодный" из изюма | B17: 200 | C17: 150 | D17: 82.64 | E17: 61.98 | F17: Йөзем компоты
A18: Хлеб "Рябинушка" | B18: 1/20 | C18: 1/20 | D18: 47.46 | E18: 47.46 | F18: Ак ипи
A19: Хлеб "Дарницкий" | B19: 1/41,43 | C19: 1/41,43 | D19: 85.14 | E19: 85.14 | F19: Кара ипи
A20: ИТОГО | D20: =SUM(D13:D19) -> 673.85 | E20: =SUM(E13:E19) -> 572.90
A21: ПОЛДНИК | F21: КИЧКЕ ӘБӘД
A22: Молоко кипяченое | B22: 130 | C22: 100 | D22: 73.10 | E22: 56.23 | F22: Кайнаган сөте
A23: Булочка дорожная | B23: 50 | C23: 50 | D23: 195.06 | E23: 195.06 | F23: Юл күмәче
A24: ИТОГО | D24: =SUM(D22:D23) -> 268.16 | E24: =SUM(E22:E23) -> 251.29
A25: УЖИН | F25: КИЧКЕ АШ
A26: Макароны запеченые с сыром с маслом | B26: 145/3 | C26: 145/3 | D26: 272.77 | E26: 272.77 | F26: Сыр һәм май белән пешкән макарон
A27: Напиток "Плодово-ягодный" из урюка | B27: 200 | C27: 150 | D27: 80.23 | E27: 60.17 | F27: Урюк компоты
A28: Хлеб "Рябинушка" | B28: 1/20 | C28: 1/20 | D28: 47.46 | E28: 47.46 | F28: Ак ипи
A29: ИТОГО | D29: =SUM(D26:D28) -> 400.46 | E29: =SUM(E26:E28) -> 380.40
A30: ИТОГО ЗА ДЕНЬ | D30: =SUM(D8,D11,D20,D24,D29) -> 1,756.38 | E30: =SUM(E8,E11,E20,E24,E29) -> 1,527.33
A31: ИТОГО СТОИМОСТЬ ПИТАНИЯ В ДЕНЬ | D31: 158,45 (САД) | F31: 125,81(ЯСЛИ)
A33: УТВЕРЖДАЮ Заведующий МБДОУ «Детский сад №78 «Ёлочка» ____________Ваничкова А.Г
A35: ВТОРНИК 13/01 | B35: Масса порции/ авырлыгы | D35: Энергетическая ценность (ккал) | F35: СИШӘМБЕ 13/01
A36: ЗАВТРАК | B36: САД | C36: ЯСЛИ | D36: САД | E36: ЯСЛИ | F36: ИРТӘНГЕ АШ
A37: Бутерброд с маслом | B37: 30/5 | C37: 20/5 | D37: 93.10 | E37: 73.11 | F37: Майлы ак күмәч
A38: Суп молочный с рисом | B38: 200 | C38: 150 | D38: 111.99 | E38: 84.00 | F38: Сөтле дөге ашы
A39: Кофейный напиток полусладкий | B39: 180 | C39: 150 | D39: 80.61 | E39: 67.17 | F39: Сөтле кофе
A40: ИТОГО | D40: =SUM(D37:D39) -> 285.70 | E40: =SUM(E37:E39) -> 224.28
A41: 2 ЗАВТРАК | F41: 2 ИРТӘНГЕ АШ
A42: Сок фруктовый разливной | B42: 100 | C42: 100 | D42: 42.40 | E42: 42.40 | F42: сок
A43: ИТОГО | D43: =SUM(D42) -> 42.40 | E43: =SUM(E42) -> 42.40
A44: ОБЕД | F44: ТӨШКЕ АШ
A45: Салат из свеклы отварной | B45: 50 | C45: 40 | D45: 54.17 | E45: 43.34 | F45: Пешкән чөгендер салаты
A46: Суп из овощей со сметаной | B46: 200/10 | C46: 150/10 | D46: 80.32 | E46: 64.23 | F46: Каймаклы яшелчә ашы
A47: Запеканка картофельная с мясом "По- домашнему" с маслом | B47: 180/5 | C47: 130/5 | D47: 372.62 | E47: 278.38 | F47: Май белән итле бәрәңге запеканкасы
A48: Напиток "Плодово-ягодный" ассорти | B48: 200 | C48: 150 | D48: 66.73 | E48: 50.05 | F48: Ассорти компоты
A49: Хлеб "Рябинушка" | B49: 1/20 | C49: 1/20 | D49: 47.46 | E49: 47.46 | F49: Ак ипи
A50: Хлеб "Дарницкий" | B50: 1/41,43 | C50: 1/41,43 | D50: 85.14 | E50: 85.14 | F50: Кара ипи
A51: ИТОГО | D51: =SUM(D45:D50) -> 706.44 | E51: =SUM(E45:E50) -> 568.60
A52: ПОЛДНИК | F52: КИЧКЕ ӘБӘД
A53: Ацидофилин | B53: 150 | C53: 130 | D53: 80.51 | E53: 69.78 | F53: Ацидофилин
A54: ИТОГО | D54: =SUM(D53:D53) -> 80.51 | E54: =SUM(E53:E53) -> 69.78
A55: УЖИН | F55: КИЧКЕ АШ
A56: Десерт фруктовый Яблоко | B56: 145 | C56: 145 | D56: 59.74 | E56: 59.74 | F56: Алма
A57: Сырники "Домашние" из творога с соусом смет. "Сластена" | B57: 150/15 | C57: 100/30 | D57: 378.47 | E57: 276.88 | F57: Сырниклар
A58: Чай "Витаминный"полусладкий с печеньем сахарным | B58: 200/15 | C58: 150/15 | D58: 183.59 | E58: 165.08 | F58: “Витамин”чәе печенҗе белэн
A59: Хлеб "Рябинушка" | B59: 1/20 | C59: 1/20 | D59: 47.46 | E59: 47.46 | F59: Ак ипи
A60: ИТОГО | D60: =SUM(D56:D59) -> 669.26 | E60: =SUM(E56:E59) -> 549.16
A61: ИТОГО ЗА ДЕНЬ | D61: =SUM(D40,D43,D51,D54,D60) -> 1,784.31 | E61: =SUM(E40,E43,E51,E54,E60) -> 1,454.22
A62: ИТОГО СТОИМОСТЬ ПИТАНИЯ В ДЕНЬ | D62: 158,45 (САД) | F62: 125,81(ЯСЛИ)
A64: УТВЕРЖДАЮ Заведующий МБДОУ «Детский сад №78 «Ёлочка» ____________Ваничкова А.Г
A66: СРЕДА 14/01 | B66: Масса порции/ авырлыгы | D66: Энергетическая ценность (ккал) | F66: ЧӘРШӘМБЕ 14/01
A67: ЗАВТРАК | B67: САД | C67: ЯСЛИ | D67: САД | E67: ЯСЛИ | F67: ИРТӘНГЕ АШ
A68: Бутерброд с сыром | B68: 30/5 | C68: 20/5 | D68: 78.13 | E68: 58.13 | F68: Сырлы ак күмәч
A69: Каша молочная "Геркулесовая" (жидкая) с маслом | B69: 200/3 | C69: 150/3 | D69: 192.50 | E69: 149.34 | F69: Сөтле-майлы солы боткасы
A70: Какао с молоком полусладкое | B70: 180 | C70: 150 | D70: 96.00 | E70: 80.00 | F70: Сөтле какао
A71: ИТОГО | D71: =SUM(D68:D70) -> 366.63 | E71: =SUM(E68:E70) -> 287.47
A72: 2 ЗАВТРАК | F72: 2 ИРТӘНГЕ АШ
A73: Сок фруктовый разливной | B73: 100 | C73: 100 | D73: 42.40 | E73: 42.40 | F73: сок
A74: ИТОГО | D74: =SUM(D73) -> 42.40 | E74: =SUM(E73) -> 42.40
A75: ОБЕД | F75: ТӨШКЕ АШ
A76: Винегрет из овощей | B76: 50 | C76: 40 | D76: 51.80 | E76: 41.44 | F76: Винегрет
A77: Суп картофельный с рыбными консервами | B77: 200/25 | C77: 150/25 | D77: 70.80 | E77: 53.11 | F77: Балык консервасы белән бәрәңгеле ашы
A78: Котлеты "Любимые" | B78: 75 | C78: 50 | D78: 172.91 | E78: 143.50 | F78: Кәтлит
A79: Пюре из бобовых "Янтарное" | B79: 130 | C79: 110 | D79: 227.34 | E79: 192.37 | F79: Боламык
A80: Напиток "Плодово-ягодный" из сухофруктов | B80: 200 | C80: 150 | D80: 79.92 | E80: 59.94 | F80: Кипкән җимеш эчемлеге
A81: Хлеб "Рябинушка" | B81: 1/20 | C81: 1/20 | D81: 47.46 | E81: 47.46 | F81: Ак ипи
A82: Хлеб "Дарницкий" | B82: 1/41,43 | C82: 1/41,43 | D82: 85.14 | E82: 85.14 | F82: Кара ипи
A83: ИТОГО | D83: =SUM(D76:D82) -> 735.37 | E83: =SUM(E76:E82) -> 622.96
A84: ПОЛДНИК | F84: КИЧКЕ ӘБӘД
A85: Молоко кипяченое | B85: 130 | C85: 100 | D85: 73.10 | E85: 56.23 | F85: Кайнаган сөте
A86: ИТОГО | D86: =SUM(D85:D85) -> 73.10 | E86: =SUM(E85:E85) -> 56.23
A87: УЖИН | F87: КИЧКЕ АШ
A88: Омлет натуральный | B88: 105 | C88: 105 | D88: 161.50 | E88: 161.50 | F88: Йомырка тәбәсе
A89: Каша гречневая вязкая | B89: 130 | C89: 110 | D89: 143.60 | E89: 121.51 | F89: Карабодай боткасы
A90: Чай полусладкий с печеньем сахарным | B90: 200/18 | C90: 150/18 | D90: 152.93 | E90: 147.56 | F90: Сөтле баллы чәй печенҗе
A91: Хлеб "Рябинушка" | B91: 1/20 | C91: 1/20 | D91: 47.46 | E91: 47.46 | F91: Ак ипи
A92: ИТОГО | D92: =SUM(D88:D91) -> 505.49 | E92: =SUM(E88:E91) -> 478.03
A93: ИТОГО ЗА ДЕНЬ | D93: =SUM(D71,D74,D83,D86,D92) -> 1,722.99 | E93: =SUM(E71,E74,E83,E86,E92) -> 1,487.09
A94: ИТОГО СТОИМОСТЬ ПИТАНИЯ В ДЕНЬ | D94: 158,45 (САД) | F94: 125,81(ЯСЛИ)
A96: УТВЕРЖДАЮ Заведующий МБДОУ «Детский сад №78 «Ёлочка» ____________Ваничкова А.Г.
A98: ЧЕТВЕРГ 15/01 | B98: Масса порции/ авырлыгы | D98: Энергетическая ценность (ккал) | F98: ПӘНҖЕШӘМБЕ 15/01
A99: ЗАВТРАК | B99: САД | C99: ЯСЛИ | D99: САД | E99: ЯСЛИ | F99: ИРТӘНГЕ АШ
A100: Бутерброд с маслом | B100: 30/5 | C100: 20/5 | D100: 93.10 | E100: 73.11 | F100: Повидлолы ак күмәч
A101: Каша молочная кукурузная с маслом | B101: 200/3 | C101: 150/3 | D101: 230.98 | E101: 178.20 | F101: Майлы-сөтле кукуруз боткасы
A102: Кофейный напиток полусладкий | B102: 180 | C102: 150 | D102: 80.61 | E102: 67.17 | F102: Сөтле кофе
A103: ИТОГО | D103: =SUM(D100:D102) -> 404.69 | E103: =SUM(E100:E102) -> 318.48
A104: 2 ЗАВТРАК | F104: 2 ИРТӘНГЕ АШ
A105: Сок фруктовый разливной | B105: 100 | C105: 100 | D105: 42.40 | E105: 42.40 | F105: сок
A106: ИТОГО | D106: =SUM(D105) -> 42.40 | E106: =SUM(E105) -> 42.40
A107: ОБЕД | F107: ТӨШКЕ АШ
A108: Салат из белокочанной капусты | B108: 50 | C108: 40 | D108: 47.83 | E108: 38.26 | F108: Кәбәсте салаты
A109: Рассольник ленинградский со сметаной | B109: 200/10 | C109: 150/5 | D109: 92.08 | E109: 64.96 | F109: Каймаклы рассольник
A110: Мякоть птицы тушеная в соусе | B110: 50/50 | C110: 40/50 | D110: 151.08 | E110: 125.68 | F110: Соуста томалап пешерелгән кош ите
A111: Макароны отварные | B111: 130 | C111: 110 | D111: 183.26 | E111: 155.06 | F111: Пешкән макарон
A112: Напиток "Плодово-ягодный" из урюка | B112: 200 | C112: 150 | D112: 80.23 | E112: 60.17 | F112: Урюк компоты
A113: Хлеб "Рябинушка" | B113: 1/20 | C113: 1/20 | D113: 47.46 | E113: 47.46 | F113: Ак ипи
A114: Хлеб "Дарницкий" | B114: 1/41,43 | C114: 1/41,43 | D114: 85.14 | E114: 85.14 | F114: Кара ипи
A115: ИТОГО | D115: =SUM(D108:D114) -> 687.08 | E115: =SUM(E108:E114) -> 576.73
A116: ПОЛДНИК | F116: КИЧКЕ ӘБӘД
A117: Ряженка | B117: 150 | C117: 130 | D117: 127.31 | E117: 110.33 | F117: Кефир
A118: Булочка дорожная | B118: 50 | C118: 50 | D118: 195.02 | E118: 195.02 | F118: Юл күмәче
A119: ИТОГО | D119: =SUM(D118:D118) -> 195.02 | E119: =SUM(E118:E118) -> 195.02
A120: УЖИН | F120: КИЧКЕ АШ
A121: Котлеты "Челнинские" | B121: 75 | C121: 50 | D121: 239.33 | E121: 159.79 | F121: Кәтлит
A122: Пюре картофельное | B122: 75 | C122: 75 | D122: 60.22 | E122: 60.22 | F122: Бәрәңге боткасы
A123: Капуста тушеная | B123: 55 | C123: 35 | D123: 45.57 | E123: 29.00 | F123: Пешкән кәбестә
A124: Чай с лимоном | B124: 200/7 | C124: 150/7 | D124: 62.73 | E124: 47.38 | F124: Лимонлы чәй
A125: Хлеб "Рябинушка" | B125: 1/20 | C125: 1/20 | D125: 47.46 | E125: 47.46 | F125: Ак ипи
A126: ИТОГО | D126: =SUM(D121:D125) -> 455.31 | E126: =SUM(E121:E125) -> 343.85
A127: ИТОГО ЗА ДЕНЬ | D127: =SUM(D103,D106,D115,D119,D126) -> 1,784.50 | E127: =SUM(E103,E106,E115,E119,E126) -> 1,476.48
A128: ИТОГО СТОИМОСТЬ ПИТАНИЯ В ДЕНЬ | D128: 158,45 (САД) | F128: 125,81(ЯСЛИ)
A130: УТВЕРЖДАЮ Заведующий МБДОУ «Детский сад №78 «Ёлочка» ____________Ваничкова А.Г
A132: ПЯТНИЦА 16/01 | B132: Масса порции/ авырлыгы | D132: Энергетическая ценность (ккал) | F132: ҖОМГА 16/01
A133: ЗАВТРАК | B133: САД | C133: ЯСЛИ | D133: САД | E133: ЯСЛИ | F133: ИРТӘНГЕ АШ
A134: Бутерброд с маслом | B134: 30/5 | C134: 20/5 | D134: 93.10 | E134: 73.11 | F134: Майлы ак күмәч
A135: Яйцо вареное | B135: 1 шт | C135: 1 шт | D135: 67.44 | E135: 67.44 | F135: Пешкән йомырка
A136: Каша молочная пшеничная с маслом | B136: 200/3 | C136: 150/3 | D136: 230.02 | E136: 177.48 | F136: Сөтле-майлы бодай боткасы
A137: Какао с молоком полусладкое | B137: 180 | C137: 150 | D137: 96.00 | E137: 80.00 | F137: Сөтле какао
A138: ИТОГО | D138: =SUM(D134:D137) -> 486.56 | E138: =SUM(E134:E137) -> 398.03
A139: 2 ЗАВТРАК | F139: 2 ИРТӘНГЕ АШ
A140: Сок фруктовый разливной | B140: 100 | C140: 100 | D140: 42.40 | E140: 42.40 | F140: сок
A141: ИТОГО | D141: =SUM(D140) -> 42.40 | E141: =SUM(E140) -> 42.40
A142: ОБЕД | F142: ТӨШКЕ АШ
A143: Салат из моркови с сахаром | B143: 50 | C143: 40 | D143: 31.49 | E143: 25.20 | F143: Баллы кишер салаты
A144: Борщ с капустой и картофелем со сметаной | B144: 200/10 | C144: 150/5 | D144: 91.46 | E144: 64.43 | F144: Каймаклы борщ ашы
A145: Биточки рыбные "Морячка" | B145: 75 | C145: 50 | D145: 144.53 | E145: 71.01 | F145: Балык биточкалары
A146: Каша рисовая вязкая | B146: 130 | C146: 110 | D146: 119.85 | E146: 101.41 | F146: Дөге боткасы
A147: Кисель из концентрата полусладкий | B147: 200 | C147: 150 | D147: 86.30 | E147: 64.73 | F147: Кесәл
A148: Хлеб "Рябинушка" | B148: 1/20 | C148: 1/20 | D148: 47.46 | E148: 47.46 | F148: Ак ипи
A149: Хлеб "Дарницкий" | B149: 1/41,43 | C149: 1/41,43 | D149: 85.14 | E149: 85.14 | F149: Кара ипи
A150: ИТОГО | D150: =SUM(D143:D149) -> 606.23 | E150: =SUM(E143:E149) -> 459.38
A151: ПОЛДНИК | F151: КИЧКЕ ӘБӘД
A152: Молоко кипяченое | B152: 130 | C152: 100 | D152: 73.10 | E152: 56.23 | F152: Кайнаган сөте
A153: ИТОГО | D153: =SUM(D152:D152) -> 73.10 | E153: =SUM(E152:E152) -> 56.23
A154: УЖИН | F154: КИЧКЕ АШ
A155: Десерт фруктовый Апельсин | B155: 110 | C155: 110 | D155: 40.92 | E155: 40.92 | F155: Әфлисун
A156: Тефтели из птицы с соусом томатным | B156: 60/30 | C156: 60/30 | D156: 166.29 | E156: 166.29 | F156: Соуста белән кош итеннән тефтели
A157: Каша ячневая вязкая | B157: 130 | C157: 110 | D157: 117.47 | E157: 99.40 | F157: Арпа боткасы
A158: Чай полусладкий | B158: 200 | C158: 150 | D158: 21.50 | E158: 16.12 | F158: Баллырак чәй
A159: Хлеб "Рябинушка" | B159: 1/20 | C159: 1/20 | D159: 47.46 | E159: 47.46 | F159: Ак ипи
A160: ИТОГО | D160: =SUM(D155:D159) -> 393.64 | E160: =SUM(E155:E159) -> 370.19
A161: ИТОГО ЗА ДЕНЬ | D161: =SUM(D138,D141,D150,D153,D160) -> 1,601.93 | E161: =SUM(E138,E141,E150,E153,E160) -> 1,326.23
A162: ИТОГО СТОИМОСТЬ ПИТАНИЯ В ДЕНЬ | D162: 158,45 (САД) | F162: 125,81(ЯСЛИ)
